bitfinex/quotes_ETHUSD_20240927
["timestamp","ask_amount","ask_price","bid_price","bid_amount"]
[1727449051264,0.77941494,2687.4,2687.0,7.44302]
[1727449051600,0.77941494,2687.4,2687.0,3.72148]
[1727449052156,0.77941494,2687.4,2686.9,3.0]
[1727449052395,0.77941494,2687.4,2687.2,3.72126]
[1727449054996,1.82541494,2687.6,2687.2,3.72126]
[1727449055359,0.77941494,2687.5,2687.2,3.72126]
[1727449055560,0.77941494,2687.5,2687.3,3.72112]
[1727449055783,1.82541494,2687.6,2687.4,3.72106]
[1727449056460,1.82541494,2687.6,2687.2,3.72133]
[1727449056692,1.82541494,2687.6,2687.3,3.72118]
[1727449057069,0.77941494,2687.5,2687.2,3.72133]
[1727449057268,1.46017469,2687.5,2686.9,3.72174]
[1727449057473,5.18110469,2687.5,2687.0,3.7216]
[1727449057655,5.18110469,2687.5,2687.1,3.72148]
[1727449057861,0.77941494,2687.4,2687.0,3.72155]
[1727449058074,0.77941494,2687.4,2687.1,3.72135]
[1727449058275,4.50035494,2687.5,2687.1,3.72135]
[1727449058489,9.42086626,2687.5,2686.9,6.72167]
[1727449058700,1.97886626,2687.5,2686.9,3.0]
[1727449058901,0.77941494,2687.4,2687.1,3.72142]
[1727449059396,0.77941494,2687.4,2687.0,3.72162]
[1727449059562,0.77941494,2687.5,2687.1,3.72142]
[1727449060159,0.77941494,2687.5,2687.3,3.72117]
[1727449060475,0.77941494,2687.7,2687.5,3.72093]
[1727449061084,1.82581494,2687.8,2687.5,3.72093]
[1727449061605,4.88889528,2687.9,2686.1,2.53759135]
[1727449061606,1.0644,2686.9,2686.1,2.53759135]
[1727449061803,1.84415218,2686.9,2686.3,3.72253]
[1727449062014,5.56592218,2686.9,2686.3,3.72253]
[1727449062169,0.77975218,2686.8,2686.3,7.44505]
[1727449062499,3.81508328,2686.7,2686.1,4.76855]
[1727449062707,0.87280546,2686.7,2686.1,4.76849]
[1727449062863,0.77975218,2686.7,2686.3,3.72258]
[1727449063601,4.50165218,2686.8,2686.3,3.72258]
[1727449064306,7.96675252,2686.7,2686.3,3.72258]
[1727449064474,0.09306133,2686.6,2686.3,3.72258]
[1727449065481,3.81526133,2686.6,2686.1,4.76848]
[1727449065811,3.81526133,2686.6,2686.2,3.72272]
[1727449066509,3.37190948,2686.7,2686.1,6.72284]
[1727449066698,1.0698,2686.5,2686.1,6.72284]
[1727449066894,4.79212,2686.5,2686.1,3.0]
[1727449067472,4.79212,2686.5,2686.1,6.72285]
[1727449067676,4.79212,2686.5,2686.1,3.0]
[1727449068318,1.0698,2686.5,2686.1,6.72283]
[1727449070370,3.72219,2686.6,2686.1,6.72283]
[1727449070971,8.07134948,2686.7,2686.2,3.72265]
[1727449071298,8.07134948,2686.7,2686.1,3.72282]
[1727449071500,11.79349948,2686.7,2686.2,3.72272]
[1727449071702,11.79349948,2686.7,2686.2,7.44544]
[1727449071703,8.07134948,2686.7,2686.2,7.44544]
[1727449071911,0.9774,2686.7,2686.3,3.7225]
[1727449072424,4.69945,2686.7,2686.3,3.7225]
[1727449072984,8.42161,2686.7,2686.1,3.72283]
[1727449073288,4.69945,2686.7,2686.3,3.72257]
[1727449073614,4.69945,2686.7,2686.1,3.72276]
[1727449073830,4.69945,2686.7,2686.2,3.72272]
[1727449074117,4.69945,2686.7,2686.3,3.72258]
[1727449074928,0.9774,2686.7,2686.3,3.72258]
[1727449076178,0.9774,2686.7,2686.3,3.72251]
[1727449076613,3.72192,2686.8,2686.3,8.45003]
[1727449076813,3.72192,2686.8,2686.3,4.72751]
[1727449077202,4.78939,2687.0,2686.3,1.005]
[1727449077404,4.78939,2687.0,2686.3,4.72747]
[1727449077721,8.5111,2687.0,2686.5,3.72225]
[1727449077927,8.5111,2687.0,2685.8,6.72326]
[1727449077928,1.0661,2686.7,2686.2,3.7227]
[1727449078081,4.7882,2686.7,2686.2,3.72263]
[1727449078987,1.0661,2686.7,2686.2,3.72263]
[1727449079218,1.0661,2686.7,2686.3,3.7225]
[1727449079528,1.0661,2686.7,2686.4,3.72244]
[1727449080329,1.0661,2686.7,2686.3,3.72258]
[1727449080734,5.00986994,2686.7,2685.9,1.0402]
[1727449080896,3.72234,2686.5,2686.0,3.72293]
[1727449081098,0.0930681,2686.6,2686.1,3.72285]
[1727449081286,1.0661,2686.7,2686.2,3.72271]
[1727449081483,1.0661,2686.7,2686.3,3.72258]
[1727449081484,4.7882,2686.7,2686.3,3.72258]
[1727449082185,1.0661,2686.7,2686.3,3.72258]
[1727449082432,1.0661,2686.7,2686.2,1.0216]
[1727449082732,1.0661,2686.7,2686.3,3.72258]
[1727449083584,4.78814,2686.7,2686.3,3.72258]
[1727449084520,4.78814,2686.7,2686.2,4.74432]
[1727449084921,4.78814,2686.7,2686.2,3.72272]
[1727449085128,3.72218,2686.6,2686.2,3.72272]
[1727449085291,3.81524283,2686.6,2686.2,3.72272]
[1727449085990,3.72218,2686.6,2686.2,3.72272]
[1727449086823,1.0661,2686.7,2686.2,7.44536]
[1727449087018,4.78816,2686.7,2686.2,7.44529]
[1727449087324,4.78816,2686.7,2686.2,3.72264]
[1727449087722,0.09306278,2686.6,2686.2,3.72264]
[1727449088318,0.09306278,2686.6,2685.6,3.0]
[1727449088521,3.81531278,2686.6,2686.1,3.72279]
[1727449088749,1.0696,2686.5,2686.0,3.0]
[1727449088914,0.09306845,2686.4,2686.0,6.72298]
[1727449089329,0.09306845,2686.4,2686.1,3.72286]
[1727449089716,0.09306845,2686.4,2686.1,3.72278]
[1727449090415,0.09306845,2686.4,2686.0,3.0]
[1727449090653,0.66409901,2686.4,2686.0,3.72292]
[1727449090817,0.09307394,2686.4,2686.0,3.72292]
[1727449091151,0.09307394,2686.4,2686.0,7.44585]
[1727449091316,0.09307394,2686.4,2686.1,3.72284]
[1727449091515,4.79192,2686.5,2686.1,3.72284]
[1727449092447,1.0696,2686.5,2686.1,7.44568]
[1727449092625,5.32725441,2686.6,2685.7,7.72831]
[1727449092626,0.77975218,2686.6,2686.4,3.72245]
[1727449092831,1.018,2686.7,2686.3,3.72257]
[1727449093031,1.018,2686.7,2686.5,3.72231]
[1727449095237,1.018,2686.7,2686.5,3.72223]
[1727449095428,1.018,2686.7,2686.6,3.72217]
[1727449096457,0.77975218,2687.1,2686.8,3.72189]
[1727449096668,1.94623943,2687.5,2687.3,3.7212]
[1727449096669,0.77975218,2687.5,2687.3,3.7212]
[1727449096826,1.84075218,2687.7,2687.5,3.72093]
[1727449097023,1.061,2687.7,2687.5,3.72093]
[1727449097719,1.0167,2688.2,2688.1,3.72009]
[1727449097914,0.77975218,2688.4,2688.3,3.71982]
[1727449098155,2.18632827,2688.5,2688.1,3.72009]
[1727449098156,1.10969651,2688.5,2688.1,3.72009]
[1727449098329,5.8114603,2688.5,2687.9,3.72028]
[1727449098537,0.77975218,2688.4,2687.9,3.72028]
[1727449098722,5.8114603,2688.5,2688.0,3.72022]
[1727449100020,0.77975218,2688.4,2687.9,3.72028]
[1727449100244,3.46491815,2688.3,2687.9,3.72035]
[1727449100629,3.46491815,2688.3,2687.7,10.44109]
[1727449101032,0.9728,2688.2,2687.7,7.44109]
[1727449101320,0.9728,2688.2,2687.8,3.72048]
[1727449101636,0.9728,2688.2,2687.7,3.72052]
[1727449101951,1.96424225,2688.2,2687.7,3.72052]
[1727449102128,0.9728,2688.2,2687.7,3.72052]
[1727449102330,0.9728,2688.2,2687.8,3.72044]
[1727449102932,0.9728,2688.2,2688.0,3.72016]
[1727449103132,0.9991,2688.4,2688.0,3.72015]
[1727449104176,0.9991,2688.4,2688.1,3.72007]
[1727449104469,0.9991,2688.4,2688.2,3.71994]
[1727449104641,0.9729,2688.6,2688.2,3.71987]
[1727449104968,7.18445697,2688.5,2688.0,3.72014]
[1727449105275,1.0604,2688.3,2687.9,3.72033]
[1727449105778,1.15340529,2688.3,2687.9,3.72033]
[1727449106072,5.97676548,2688.3,2687.8,7.44086]
[1727449106324,3.72019,2688.1,2687.6,3.7207]
[1727449107270,3.72019,2688.1,2687.4,4.73848]
[1727449107271,3.72037,2687.9,2687.4,3.72095]
[1727449107881,0.09302308,2687.8,2687.4,3.72095]
[1727449108276,0.09302308,2687.8,2687.5,3.72091]
[1727449109132,5.41095995,2688.0,2687.5,3.72091]
[1727449109335,5.41095995,2688.0,2687.4,3.72095]
[1727449109537,3.72114,2687.4,2686.8,11.01177]
[1727449109736,3.37190948,2687.7,2686.8,3.72177]
[1727449109737,0.9887,2687.3,2686.8,3.72177]
[1727449110146,0.9887,2687.3,2686.4,4.75231]
[1727449110552,0.9887,2687.3,2687.0,3.72151]
[1727449111268,1.0454,2687.1,2686.6,3.72204]
[1727449111852,1.0454,2687.1,2686.8,3.72188]
[1727449112698,1.0454,2687.1,2686.6,3.72204]
[1727449112860,0.9774,2687.4,2687.1,3.7214]
[1727449113194,0.9774,2687.7,2687.2,3.72124]
[1727449113565,0.9774,2687.7,2687.3,3.7212]
[1727449113980,0.9774,2687.7,2687.4,3.72105]
[1727449114493,0.9774,2687.7,2687.1,3.72138]
[1727449114494,4.69809,2687.7,2687.2,3.72134]
[1727449114693,4.69809,2687.7,2687.2,7.44261]
[1727449114850,5.59595238,2687.7,2687.2,7.44261]
[1727449115054,1.87526238,2687.7,2687.3,3.72112]
[1727449115300,0.9774,2687.7,2686.7,1.0206]
[1727449115504,0.01021135,2687.5,2687.4,3.72098]
[1727449119958,0.01021135,2687.5,2687.4,6.72098]
[1727449120661,0.01021135,2687.5,2687.4,7.79358]
[1727449127324,0.01021135,2687.5,2687.4,6.72098]
[1727449128113,0.01021135,2687.5,2687.3,6.72115]
[1727449128311,0.01021135,2687.5,2687.3,3.72115]
[1727449128482,0.01021135,2687.5,2687.3,7.44228]
[1727449128685,0.01021135,2687.5,2687.4,3.72106]
[1727449131592,0.01021135,2687.5,2687.4,7.86537388]
[1727449131793,0.01021135,2687.5,2687.4,7.79096]
[1727449132383,0.01021135,2687.5,2687.4,8.34096]
[1727449135609,0.01021135,2687.5,2687.4,7.79096]
[1727449135923,0.01021135,2687.5,2687.4,6.72106]
[1727449136797,0.01021135,2687.5,2687.4,3.0]
[1727449137335,0.01021135,2687.5,2687.1,3.72139]
[1727449137488,0.9791,2687.4,2687.2,3.72134]
[1727449137690,0.9791,2687.4,2687.0,3.7216]
[1727449137889,4.70017,2687.4,2687.0,3.7216]
[1727449138234,0.9791,2687.4,2687.1,3.72138]
[1727449138382,0.9791,2687.4,2687.0,3.7216]
[1727449138383,0.9791,2687.4,2687.2,3.72133]
[1727449138836,0.9791,2687.4,2687.3,3.7212]
[1727449140130,0.01021135,2687.5,2687.3,3.72108]
[1727449140642,0.01021135,2687.5,2687.4,3.72106]
[1727449141339,0.01021135,2687.5,2687.3,3.72119]
[1727449142001,0.01021135,2687.5,2687.4,3.71974153]
[1727449143335,0.01021135,2687.5,2687.4,6.71974153]
[1727449144261,0.01021135,2687.5,2687.4,3.71974153]
[1727449161561,0.01021135,2687.5,2687.4,7.71754153]
[1727449164587,0.01021135,2687.5,2687.4,6.71974153]
[1727449168584,0.78996353,2687.5,2687.4,3.71974153]
[1727449169859,1.08445271,2687.5,2687.1,6.72136]
[1727449170063,0.77975218,2687.3,2687.2,3.72123]
[1727449170513,1.16962827,2687.4,2687.1,6.72136]
[1727449170514,0.78130324,2687.4,2687.1,6.72136]
[1727449170724,1.035,2687.3,2687.2,3.72134]
[1727449171379,1.81630324,2687.3,2687.1,3.72147]
[1727449171579,2.06723612,2687.3,2687.1,3.72147]
[1727449172012,2.06723612,2687.3,2687.1,3.7214]
[1727449172404,2.06723612,2687.3,2687.1,7.44281]
[1727449172822,2.06723612,2687.3,2687.1,3.7214]
[1727449173777,1.10498968,2687.2,2687.1,3.7214]
[1727449174216,1.10498968,2687.2,2686.9,3.72164]
[1727449174428,0.78130324,2687.1,2686.8,3.72184]
[1727449174632,0.22746179,2687.0,2686.8,3.72184]
[1727449174928,1.00876503,2687.0,2686.8,3.72184]
[1727449175302,1.00876503,2687.0,2686.7,7.44386]
[1727449175511,0.22746179,2687.0,2686.8,3.72186]
[1727449177413,0.78130324,2687.1,2686.8,3.72186]
[1727449177601,0.78130324,2687.1,2686.5,3.0]
[1727449177830,0.78130324,2687.1,2686.9,3.72173]
[1727449178976,1.10498968,2687.2,2686.9,3.72173]
[1727449179572,1.13735832,2687.1,2686.9,3.72173]
[1727449182346,1.13735832,2687.1,2686.9,7.44339]
[1727449182532,1.13735832,2687.1,2686.9,3.72166]
[1727449182533,0.35605508,2687.1,2686.9,3.72166]
[1727449182733,1.13735832,2687.1,2686.9,3.72166]
[1727449185485,0.35605508,2687.1,2686.9,3.72166]
[1727449185843,0.9962,2687.0,2686.7,3.72196]
[1727449186045,0.50738051,2686.9,2686.7,3.72196]
[1727449186469,0.9962,2687.0,2686.7,3.72196]
[1727449189951,0.9962,2687.0,2686.8,3.72186]
[1727449190396,2.11698968,2687.2,2686.9,3.72176]
[1727449191462,2.11698968,2687.2,2686.9,7.44352]
[1727449191876,1.33568644,2687.2,2686.9,3.72176]
[1727449192077,0.21169897,2687.1,2686.9,3.72169]
[1727449192590,0.21169897,2687.1,2686.9,3.72168]
[1727449194002,3.93319897,2687.1,2686.7,3.72197]
[1727449194367,0.21169897,2687.1,2686.8,3.72189]
[1727449194558,0.94219581,2687.0,2686.8,3.72189]
[1727449195573,0.94219581,2687.0,2686.8,7.44364]
[1727449195865,0.21169897,2687.1,2686.8,3.7218]
[1727449197599,0.21169897,2687.1,2686.9,3.72169]
[1727449198164,0.21169897,2687.1,2686.8,3.72189]
[1727449198365,0.21169897,2687.1,2686.8,7.44378]
[1727449198570,0.21169897,2687.1,2686.8,3.72189]
[1727449199484,0.21169897,2687.1,2686.8,3.72184]
[1727449199885,0.23286887,2687.0,2686.7,3.72201]
[1727449200092,3.60477835,2687.0,2686.6,7.44414]
[1727449200316,3.72212,2686.7,2686.1,3.72282]
[1727449200514,0.9477,2686.5,2686.2,3.72264]
[1727449200704,0.9477,2686.5,2686.4,3.72245]
[1727449201087,0.78130324,2686.7,2686.6,3.72217]
[1727449201088,1.72900324,2686.7,2686.6,3.72217]
[1727449201277,0.9477,2686.7,2686.5,3.7223]
[1727449201482,0.28986315,2686.7,2686.6,3.72217]
[1727449201789,0.9992,2686.7,2686.3,3.7225]
[1727449202101,1.50815265,2686.7,2686.3,3.7225]
[1727449202320,1.50815265,2686.7,2686.0,1.0072]
[1727449202321,0.9992,2686.5,2686.2,3.72268]
[1727449202474,0.9992,2686.5,2686.4,3.72245]
[1727449202812,2.25935589,2686.7,2686.4,3.72245]
[1727449203018,1.47805265,2686.7,2686.4,3.72245]
[1727449203379,0.9691,2686.7,2686.5,3.72228]
[1727449203717,4.78425739,2686.7,2686.2,3.72266]
[1727449203879,0.55655606,2686.6,2685.9,4.71713]
[1727449204080,0.9691,2686.7,2686.3,3.72254]
[1727449204395,1.75040324,2686.7,2686.0,3.0]
[1727449204578,0.78130324,2686.9,2686.7,3.72203]
[1727449204784,0.78130324,2687.1,2686.8,3.72189]
[1727449205024,0.66438115,2687.1,2686.6,0.994]
[1727449205192,1.0362,2686.9,2686.5,3.72224]
[1727449205579,1.0362,2686.9,2686.4,3.72232]
[1727449205580,3.7219,2686.8,2686.4,3.72232]
[1727449206006,9.64849299,2686.9,2686.4,3.72232]
[1727449206190,1.81750324,2686.9,2686.6,3.72208]
[1727449206490,0.78130324,2687.2,2687.0,3.72162]
[1727449206677,1.72330324,2687.4,2686.6,0.9535]
[1727449206878,1.72330324,2687.4,2687.1,3.7214]
[1727449207106,0.01021135,2687.5,2687.2,0.9884]
[1727449207306,0.01021135,2687.5,2687.3,3.7212]
[1727449207830,0.01021135,2687.5,2687.2,0.9884]
[1727449207831,0.01021135,2687.5,2687.2,3.72134]
[1727449208234,0.01021135,2687.5,2687.3,3.72116]
[1727449208688,0.01021135,2687.5,2687.4,3.72106]
[1727449208891,0.01021135,2687.5,2687.0,1.0224]
[1727449209096,0.01021135,2687.5,2687.2,3.72125]
[1727449209390,0.01021135,2687.5,2687.2,7.4425]
[1727449209594,0.01021135,2687.5,2687.2,3.72125]
[1727449209920,0.96151135,2687.5,2687.0,8.46549]
[1727449210104,1.74281459,2687.5,2687.1,3.72146]
[1727449210626,1.74281459,2687.5,2687.0,4.74393]
[1727449210803,1.74281459,2687.5,2687.0,4.7439]
[1727449211002,0.78130324,2687.2,2687.1,3.72137]
[1727449211320,0.78130324,2687.4,2687.2,3.72134]
[1727449212205,0.79151459,2687.5,2687.4,4.72076]
[1727449212527,0.01021135,2687.5,2687.4,4.72076]
[1727449212731,0.01021135,2687.5,2687.4,7.79516834]
[1727449212941,0.01021135,2687.5,2687.4,7.72076]
[1727449214597,0.01021135,2687.5,2687.4,3.0]
[1727449214908,0.01021135,2687.5,2687.4,3.72106]
[1727449215930,0.01021135,2687.5,2687.3,7.44233]
[1727449216101,0.01021135,2687.5,2687.3,3.72113]
[1727449216602,3.73120135,2687.5,2687.0,3.72162]
[1727449216797,0.45125046,2687.4,2686.9,3.72168]
[1727449217038,0.78130324,2687.4,2687.1,3.72141]
[1727449217243,0.09303408,2687.3,2686.9,3.72168]
[1727449217454,7.09340948,2687.1,2686.4,11.0124]
[1727449217612,3.72176,2686.9,2686.2,0.9894]
[1727449217814,4.50306324,2686.9,2686.4,3.72237]
[1727449218042,1.44388239,2686.8,2686.4,3.72237]
[1727449218546,0.78130324,2686.7,2686.3,3.72249]
[1727449218901,1.44388239,2686.8,2686.3,3.72245]
[1727449219119,0.78130324,2686.7,2686.3,3.72245]
[1727449219320,1.41484731,2686.6,2686.1,3.7228]
[1727449219514,1.41484731,2686.6,2685.6,3.72352]
[1727449219515,3.37190948,2686.2,2685.4,1.58448423]
[1727449219837,1.21157233,2686.1,2685.7,3.72333]
[1727449220151,1.21157233,2686.1,2685.7,3.72331]
[1727449220152,0.43026909,2686.1,2685.7,3.72331]
[1727449220356,1.11849419,2686.1,2685.9,3.72314]
[1727449220566,0.33719095,2686.1,2685.7,3.72331]
[1727449220774,1.11849419,2686.1,2685.7,3.72331]
[1727449221058,1.74510324,2686.0,2685.7,3.72331]
[1727449221257,0.9638,2686.0,2685.8,3.72324]
[1727449221557,0.78130324,2686.1,2685.8,3.72324]
[1727449222025,0.78130324,2686.2,2686.1,3.72286]
[1727449222363,2.53590436,2686.5,2686.2,3.72273]
[1727449222364,0.78130324,2686.4,2686.2,3.72273]
[1727449222517,1.85076789,2686.5,2686.0,3.7229]
[1727449222724,1.75770324,2686.5,2686.0,3.7229]
[1727449223325,6.39399953,2686.5,2686.0,3.7229]
[1727449223540,2.57861483,2686.5,2686.0,3.7229]
[1727449223783,4.50375324,2686.4,2685.8,3.7232]
[1727449224083,0.74706931,2686.3,2685.8,3.7232]
[1727449224430,0.8401423,2686.3,2685.8,3.7232]
[1727449224779,0.74706931,2686.3,2685.8,7.4464]
[1727449225269,0.74706931,2686.3,2685.9,3.72313]
[1727449225472,1.75770324,2686.5,2686.0,3.72298]
[1727449225684,1.75770324,2686.5,2685.9,3.72313]
[1727449225685,0.78130324,2686.4,2685.9,3.72313]
[1727449225850,0.25390065,2686.3,2685.9,3.72313]
[1727449226051,0.25390065,2686.3,2685.7,8.48375]
[1727449226399,3.97652065,2686.3,2685.8,3.72319]
[1727449226599,0.25390065,2686.3,2685.8,3.72319]
[1727449227253,3.97658065,2686.3,2685.8,7.44639]
[1727449227678,3.97658065,2686.3,2685.8,3.72319]
[1727449227876,0.39765807,2686.2,2685.8,3.72319]
[1727449228086,0.39765807,2686.2,2685.7,1.0371]
[1727449228087,0.490732,2686.2,2685.7,1.0371]
[1727449228243,1.0295,2686.1,2685.7,3.72337]
[1727449228439,5.75245959,2686.1,2685.5,3.72356]
[1727449228639,5.75245959,2686.1,2685.4,3.72374]
[1727449228640,3.72314,2685.9,2685.4,3.72374]
[1727449228847,3.72367,2685.6,2685.0,4.72281]
[1727449229150,3.72367,2685.6,2685.0,0.9985]
[1727449229362,3.72367,2685.6,2685.1,3.72424]
[1727449229565,3.72367,2685.6,2685.1,7.44842]
[1727449229945,3.72367,2685.6,2685.1,3.72418]
[1727449230285,4.571315,2685.6,2685.1,3.72418]
[1727449230844,4.571315,2685.6,2684.9,0.51447124]
[1727449230845,3.72372,2685.5,2684.9,0.51447124]
[1727449231075,0.847645,2685.6,2685.0,3.72429]
[1727449231076,0.9832,2685.3,2685.0,3.72429]
[1727449232097,0.9832,2685.3,2684.9,0.51447124]
[1727449233343,4.70718,2685.3,2684.9,0.51447124]
[1727449233548,5.88746095,2685.3,2684.9,0.51447124]
[1727449234453,4.68409,2685.0,2684.9,0.51447124]
[1727449235288,0.9597,2685.0,2684.9,0.51447124]
[1727449237081,3.7239,2685.4,2684.9,0.51447124]
[1727449237280,0.9515,2685.3,2684.9,0.51447124]
[1727449237488,0.9515,2685.3,2684.9,4.23899124]
[1727449237687,0.9515,2685.3,2685.0,3.72428]
[1727449237931,0.9515,2685.3,2684.9,4.23899124]
[1727449238077,0.9515,2685.3,2685.0,3.72437]
[1727449238509,0.991,2685.5,2684.9,5.24281124]
[1727449238673,1.735727,2685.5,2684.9,0.51447124]
[1727449238877,1.0236,2685.1,2684.9,0.51447124]
[1727449239517,1.11671505,2685.1,2684.9,0.51447124]
[1727449239715,4.74788,2685.1,2684.9,0.51447124]
[1727449239887,4.571598,2685.0,2684.9,0.51447124]
[1727449240312,4.66472043,2685.0,2684.9,0.51447124]
[1727449242687,0.847208,2685.0,2684.9,0.51447124]
[1727449243022,4.74788,2685.1,2684.9,0.51447124]
[1727449243237,1.0236,2685.1,2684.9,0.51447124]
[1727449244487,0.09312287,2685.0,2684.9,0.51447124]
[1727449244712,3.81751287,2685.0,2684.9,0.51447124]
[1727449245633,3.72439,2685.0,2684.9,0.51447124]
[1727449245839,4.58091523,2685.0,2684.9,0.51447124]
[1727449246409,0.85652523,2685.0,2684.9,0.51447124]
[1727449246734,1.0236,2685.1,2684.9,0.51447124]
[1727449250238,1.0236,2685.1,2684.9,4.23893124]
[1727449250443,1.0236,2685.1,2684.9,0.51447124]
[1727449250802,1.0095,2685.3,2684.9,4.23899124]
[1727449251254,1.0355,2685.6,2685.3,3.72395]
[1727449251544,1.0355,2686.2,2685.8,3.72328]
[1727449251750,1.0355,2686.2,2685.9,3.72302]
[1727449252051,1.0402,2686.4,2686.1,3.72275]
[1727449252215,1.0402,2686.4,2685.9,3.72304]
[1727449252407,4.76266,2686.4,2685.9,3.72304]
[1727449252603,3.81568263,2686.3,2685.7,3.72342]
[1727449252834,3.72301,2686.0,2685.5,3.72359]
[1727449253450,0.9749,2685.9,2685.5,3.72359]
[1727449255353,0.9749,2685.9,2685.3,3.72388]
[1727449255354,0.09309093,2685.8,2685.3,3.72388]
[1727449255654,4.193168,2685.8,2685.3,3.72388]
[1727449255810,4.69813,2685.9,2685.1,3.72412]
[1727449256015,1.0138,2685.7,2685.2,3.7241]
[1727449256357,3.72358,2685.6,2685.1,3.72412]
[1727449256949,3.37190948,2686.1,2684.9,0.51447124]
[1727449256950,1.0138,2685.4,2684.9,0.51447124]
[1727449257356,1.487552,2685.4,2684.9,0.51447124]
[1727449257831,1.487552,2685.4,2684.9,4.23900124]
[1727449258143,3.72339,2685.8,2685.2,3.72403]
[1727449258346,3.72339,2685.8,2685.3,3.72396]
[1727449258549,4.095729,2685.8,2685.3,3.72396]
[1727449259255,3.72296,2686.1,2685.5,3.72369]
[1727449259756,3.72296,2686.1,2685.6,3.72353]
[1727449260049,4.68162,2686.2,2685.7,3.72341]
[1727449260256,0.9588,2686.2,2685.8,3.72327]
[1727449260469,0.9588,2686.2,2685.7,3.72341]
[1727449260671,0.9588,2686.2,2685.7,7.44675]
[1727449260830,4.70244,2686.6,2685.9,3.72302]
[1727449261027,4.70244,2686.6,2685.9,3.72304]
[1727449261028,3.72239,2686.5,2685.9,3.72304]
[1727449261263,4.70244,2686.6,2685.7,3.37190948]
[1727449261264,3.72276,2686.2,2685.7,3.72332]
[1727449261568,0.9935,2685.9,2685.5,3.72356]
[1727449262072,0.9935,2685.9,2685.4,3.72376]
[1727449262281,0.9935,2685.9,2685.2,3.724]
[1727449262428,0.9935,2685.9,2685.0,6.72435]
[1727449262774,0.9935,2685.9,2685.1,3.0]
[1727449263133,0.9935,2685.9,2685.0,3.72427]
[1727449263360,3.72384,2685.4,2684.9,0.51447124]
[1727449263529,1.0111,2685.2,2684.9,0.51447124]
[1727449263733,1.0111,2685.5,2685.0,3.7243]
[1727449263931,1.0111,2685.5,2685.2,3.7241]
[1727449264132,0.9432,2685.8,2685.2,3.72404]
[1727449264339,0.9432,2685.8,2685.4,3.72374]
[1727449264528,1.782152,2685.8,2685.2,3.72404]
[1727449264750,3.72354,2685.7,2685.2,3.72404]
[1727449264944,3.72357,2685.6,2685.0,3.72432]
[1727449265232,1.62025524,2685.8,2684.9,0.51447124]
[1727449265459,0.9935,2685.3,2684.9,0.51447124]
[1727449265974,0.9935,2685.3,2685.0,3.7243]
[1727449266277,3.72365,2685.6,2685.0,3.7243]
[1727449266278,4.69505,2685.6,2685.0,3.7243]
[1727449266565,5.66999494,2685.6,2684.9,0.51447124]
[1727449266770,5.66999494,2685.6,2684.9,4.23892124]
[1727449267067,3.72377,2685.5,2684.9,7.96337124]
[1727449267239,3.72385,2685.4,2684.9,4.23891124]
[1727449267431,3.81721142,2685.3,2684.9,0.51447124]
[1727449267773,0.9399,2685.1,2684.9,0.51447124]
[1727449268268,1.03301618,2685.1,2684.9,0.51447124]
[1727449268574,0.9399,2685.1,2684.9,0.51447124]
[1727449269449,4.75730245,2685.1,2684.9,0.51447124]
[1727449269651,0.84814925,2685.0,2684.9,0.51447124]
[1727449270768,4.57253925,2685.0,2684.9,0.51447124]
[1727449271073,4.66416,2685.1,2684.9,0.51447124]
[1727449271239,0.9399,2685.1,2684.9,0.51447124]
[1727449271697,5.5386942,2685.1,2684.9,0.51447124]
[1727449271847,9.2630642,2685.1,2684.9,0.51447124]
[1727449272050,4.86078398,2685.0,2684.9,0.51447124]
[1727449272240,5.54896249,2685.0,2684.9,0.51447124]
[1727449272836,4.76765925,2685.0,2684.9,0.51447124]
[1727449273474,1.04326925,2685.0,2684.9,0.51447124]
[1727449273775,1.72120324,2685.1,2684.9,0.51447124]
[1727449274352,0.78130324,2685.0,2684.9,0.51447124]
[1727449274550,1.72120324,2685.1,2684.9,0.51447124]
[1727449275032,0.9399,2685.1,2684.9,0.51447124]
[1727449275236,1.72120324,2685.1,2684.9,0.51447124]
[1727449275493,0.09312053,2685.0,2684.9,0.51447124]
[1727449275700,4.50569324,2685.0,2684.9,0.51447124]
[1727449275993,4.5045785,2685.0,2684.9,0.51447124]
[1727449276357,3.72439,2685.0,2684.9,0.51447124]
[1727449276578,10.21973542,2685.1,2684.9,0.51447124]
[1727449276798,5.68247893,2685.0,2684.9,0.51447124]
[1727449276967,1.17792398,2685.0,2684.9,0.51447124]
[1727449277298,0.78015882,2685.3,2685.1,3.72425]
[1727449277455,1.80675882,2685.7,2685.1,7.44843]
[1727449277655,5.53028882,2685.7,2685.1,7.44837]
[1727449277906,0.78015882,2685.6,2685.4,3.72376]
[1727449278052,1.0266,2685.7,2685.4,3.72376]
[1727449278399,1.0266,2685.7,2685.5,3.72367]
[1727449278696,0.78015882,2686.0,2685.8,3.72328]
[1727449278914,0.78015882,2686.2,2686.0,3.72293]
[1727449279055,0.78015882,2686.3,2686.1,3.72284]
[1727449279401,1.55950436,2686.6,2686.2,3.72271]
[1727449279402,0.78015882,2686.4,2686.2,3.72271]
[1727449279583,0.78015882,2686.5,2686.3,3.72258]
[1727449279902,0.78625944,2686.6,2686.0,3.72295]
[1727449280401,1.0207,2686.8,2685.8,3.37190948]
[1727449280570,0.78015882,2687.0,2686.3,3.72251]
[1727449280766,1.0162,2687.1,2686.6,3.72217]
[1727449280971,1.79635882,2687.1,2686.5,3.72229]
[1727449281299,0.38965353,2687.0,2686.5,3.7223]
[1727449281600,0.09305558,2686.9,2686.4,3.72244]
[1727449281794,0.09305558,2686.9,2686.2,4.7346]
[1727449281795,3.72183,2686.9,2686.2,4.7346]
[1727449282090,3.72219,2686.6,2685.9,4.73504]
[1727449282290,3.72241,2686.5,2685.9,3.72304]
[1727449282799,0.9599,2686.2,2685.7,3.72331]
[1727449283093,0.09308476,2686.1,2685.7,3.72331]
[1727449283293,4.68264,2686.2,2685.6,3.72347]
[1727449283594,0.840524,2686.1,2685.6,3.72347]
[1727449284900,0.9599,2686.2,2685.6,3.72347]